fUSD/lending_fUSD_20250324
["ID","MTS","AMOUNT","RATE_DAILY","PERIOD"]
[356622970,1742845325075,-596.62530694,0.00049898,120]
[356622971,1742845325110,-173.5278501,0.000499,120]
[356622972,1742845325147,-50000.0,0.0005,50]
[356622973,1742845325182,-276.83560327,0.0005,120]
[356622974,1742845325214,-1000.0,0.0005,120]
[356622975,1742845325250,-820.01,0.0005,120]
[356622976,1742845325284,-510.80530729,0.0005,120]
[356622977,1742845325318,-1643.39041403,0.0005,120]
[356622978,1742845325350,-943.617,0.0005,120]
[356622979,1742845325388,-1909.78439515,0.0005,90]
[356622980,1742845325424,-172086.0,0.0005,120]
[356622981,1742845325461,-200.0,0.0005,120]
[356622982,1742845325495,-55336.6414319,0.0005,120]
[356622983,1742845325527,-50033.45164609,0.0005,120]
[356622984,1742845325561,-6586.92203131,0.0005,120]
[356622985,1742845325595,-5461.90507586,0.0005,120]
[356622986,1742845325629,-24485.13709024,0.0005,120]
[356622987,1742845325663,-1000000.0,0.0005,120]
[356622988,1742845325697,-10000.0,0.0005,120]
[356622989,1742845325732,-193.0,0.0005,120]
[356622990,1742845325765,-1516.64459803,0.0005,120]
[356622991,1742845325799,-380.0603737,0.0005,120]
[356622992,1742845325834,-5240.0,0.0005,30]
[356622993,1742845325868,-500.0,0.0005,120]
[356622994,1742845325904,-10000.0,0.0005,120]
[356622995,1742845325938,-10000.0,0.0005,120]
[356622996,1742845325974,-10000.0,0.0005,120]
[356622997,1742845326009,-212.43010389,0.0005,120]
[356622998,1742845326044,-380.61406167,0.0005,120]
[356622999,1742845326079,-1000.0,0.0005,120]
[356623000,1742845326112,-150.0,0.0005,30]
[356623001,1742845326147,-233.62695553,0.0005,120]
[356623002,1742845326181,-209.221113,0.0005,120]
[356623003,1742845326214,-209.221113,0.0005,120]
[356623004,1742845326247,-46991.07,0.000501,120]
[356623005,1742845326281,-500.0,0.00050136,120]
[356623006,1742845326313,-1231.79,0.00050136,120]
[356623007,1742845326348,-500.0,0.00050136,120]
[356623008,1742845326519,-446.34113063,0.00050136,120]
[356623009,1742845326554,-500.0,0.00050136,120]
[356623010,1742845326589,-500.0,0.00050136,120]
[356623011,1742845326623,-500.0,0.00050136,120]
[356623012,1742845326656,-772.53,0.00050136,120]
[356623013,1742845326689,-500.0,0.00050136,120]
[356623014,1742845326721,-500.0,0.00050136,120]
[356623015,1742845326754,-500.0,0.00050136,30]
[356623016,1742845326788,-500.0,0.00050136,120]
[356623017,1742845326825,-543.60899174,0.00050136,120]
[356623018,1742845326865,-500.0,0.00050136,120]
[356623019,1742845326905,-500.0,0.00050136,120]
[356623020,1742845326940,-568.24927931,0.00050136,120]
[356623021,1742845326976,-500.0,0.00050136,120]
[356623022,1742845327010,-500.0,0.00050136,120]
[356623023,1742845327044,-668.12,0.00050136,120]
[356623024,1742845327081,-687.44,0.00050136,120]
[356623025,1742845327116,-500.0,0.0005041,120]
[356623026,1742845327153,-1231.79,0.0005041,120]
[356623027,1742845327189,-500.0,0.0005041,120]
[356623028,1742845327222,-500.0,0.0005041,120]
[356623029,1742845327256,-323.82269213,0.0005041,120]
[356623030,1742845327290,-513.93545073,0.0005041,120]
[356623031,1742845327324,-772.53,0.0005041,120]
[356623032,1742845327358,-500.0,0.0005041,120]
[356623033,1742845327395,-500.0,0.0005041,120]
[356623034,1742845327427,-500.0,0.0005041,30]
[356623035,1742845327460,-500.0,0.0005041,120]
[356623036,1742845327494,-500.0,0.0005041,120]
[356623037,1742845327527,-500.0,0.0005041,120]
[356623038,1742845327561,-500.0,0.0005041,120]
[356623039,1742845327596,-500.0,0.0005041,120]
[356623040,1742845327629,-668.12,0.0005041,120]
[356623041,1742845327662,-687.44,0.0005041,120]
[356623042,1742845327695,-3000.0,0.0005044,31]
[356623043,1742845327729,-2060.76619217,0.00050446,120]
[356623044,1742845327764,-7948.89999072,0.00050466,120]
[356623045,1742845327796,-544.89752355,0.00050487,120]
[356623046,1742845327829,-10000.0,0.000505,120]
[356623047,1742845327863,-7948.89999072,0.00050505,120]
[356623048,1742845327898,-9614.04393428,0.00050514,120]
[356623049,1742845327934,-2060.76619217,0.0005052,120]
[356623050,1742845327967,-544.89752355,0.00050528,120]
[356623051,1742845328002,-7948.89999072,0.0005053,120]
[356623052,1742845328036,-2060.76619217,0.00050541,120]
[356623053,1742845328073,-2060.76619217,0.00050573,120]
[356623054,1742845328109,-9614.04393428,0.00050575,120]
[356623055,1742845328142,-46991.07,0.000506,120]
[356623056,1742845328176,-9614.04393428,0.00050612,120]
[356623057,1742845328208,-9614.04393428,0.00050632,120]
[356623058,1742845328240,-870.84739652,0.00050658,120]
[356623059,1742845328272,-2237.82566045,0.00050662,120]
[356623060,1742845328305,-18733.51908762,0.00050675,120]
[356623061,1742845328339,-500.0,0.00050684,120]
[356623062,1742845328375,-1231.79,0.00050684,120]
[356623063,1742845328408,-190.52363982,0.00050684,120]
[356623064,1742845328442,-500.0,0.00050684,120]
[356623065,1742845328476,-772.53,0.00050684,120]
[356623066,1742845328509,-465.1243496,0.00050684,120]
[356623067,1742845328540,-500.0,0.00050684,120]
[356623068,1742845328571,-500.0,0.00050684,30]
[356623069,1742845328602,-500.0,0.00050684,120]
[356623070,1742845328635,-500.0,0.00050684,120]
[356623071,1742845328666,-500.0,0.00050684,120]
[356623072,1742845328700,-500.0,0.00050684,120]
[356623073,1742845328735,-500.0,0.00050684,120]
[356623074,1742845328768,-668.12,0.00050684,120]
[356623075,1742845328799,-687.44,0.00050684,120]
[356623076,1742845329018,500.0,0.00046575,120]
[356623077,1742845329061,500.0,0.00046849,120]
[356623078,1742845329102,500.0,0.00046575,120]
[356623079,1742845329141,500.0,0.00047123,120]
[356623080,1742845329186,500.0,0.00046849,120]
[356623081,1742845329223,500.0,0.00047397,120]
[356623082,1742845329263,218.78099184,0.00049266,120]
[356623083,1742845329303,593.43005747,0.00047671,120]
[356623084,1742845329341,151.0,0.000494,120]
[356623085,1742845329382,413.52676516,0.00047123,120]
[356623086,1742845329419,151.0,0.0005,120]
[356623087,1742845329469,150.0,0.000501,120]
[356623088,1742845329506,150.0,0.00050136,120]
[356623089,1742845329601,150.0,0.0005041,120]
[356623090,1742845329638,150.0,0.0005044,31]
[356623091,1742845329678,150.0,0.00050446,120]
[356623092,1742845329716,150.0,0.00050466,120]
[356623093,1742845329753,150.0,0.00050487,120]
[356623094,1742845329962,500.0,0.00049315,120]
[356623095,1742845330158,150.0,0.000505,120]
[356623096,1742845330247,500.0,0.00049315,120]
[356623097,1742845330687,500.0,0.00049315,120]
[356623098,1742845330724,150.0,0.00050505,120]
[356623099,1742845330810,500.0,0.00049315,120]
[356623100,1742845331038,150.0,0.00050514,120]
[356623101,1742845331087,500.0,0.00049315,120]
[356623102,1742845331296,500.0,0.00049315,120]
[356623103,1742845331465,150.0,0.0005052,120]
[356623104,1742845331545,500.0,0.00049315,120]
[356623105,1742845331786,500.0,0.00049315,120]
[356623106,1742845331895,150.0,0.00050528,120]
[356623107,1742845332089,500.0,0.00049315,120]
[356623108,1742845332311,150.0,0.0005053,120]
[356623109,1742845332367,500.0,0.00049315,120]
[356623110,1742845332659,500.0,0.00049315,120]
[356623111,1742845332716,150.0,0.00050541,120]
[356623112,1742845332916,500.0,0.00049589,120]
[356623113,1742845333125,150.0,0.00050573,120]
[356623114,1742845333199,214.64099,0.000494,120]
[356623115,1742845333243,500.0,0.00049863,120]
[356623116,1742845333467,500.0,0.00050136,120]
[356623117,1742845333725,500.0,0.0005041,120]
[356623118,1742845333970,500.0,0.00050684,120]
[356623119,1742845334828,500.0,0.00046575,120]
[356623120,1742845335098,500.0,0.00046849,120]
[356623121,1742845335331,500.0,0.00047123,120]
[356623122,1742845335606,500.0,0.00047397,120]
[356623123,1742845335870,500.0,0.00047671,120]
[356623124,1742845336455,550.79984004,0.00047945,120]
[356623125,1742845337172,500.0,0.00046575,120]
[356623126,1742845337418,500.0,0.00046849,120]
[356623127,1742845337680,500.0,0.00047123,120]
[356623128,1742845337968,500.0,0.00047397,120]
[356623129,1742845338214,500.0,0.00046575,120]
[356623130,1742845338252,500.0,0.00047671,120]
[356623131,1742845338482,500.0,0.00047945,120]
[356623132,1742845338536,500.0,0.00046849,120]
[356623133,1742845338744,500.0,0.00048219,120]
[356623134,1742845338807,500.0,0.00047123,120]
[356623135,1742845339046,500.0,0.00048493,120]
[356623136,1742845339092,500.0,0.00047397,120]
[356623137,1742845339223,500.0,0.00048767,120]
[356623138,1742845339338,500.0,0.00047671,120]
[356623139,1742845339590,500.0,0.00047945,120]
[356623140,1742845339836,500.0,0.00049041,120]
[356623141,1742845339874,500.0,0.00048219,120]
[356623142,1742845339913,8969.24,0.00046575,120]
[356623143,1742845340082,500.0,0.00048493,120]
[356623144,1742845340122,500.0,0.00049315,120]
[356623145,1742845340174,8969.24,0.00046849,120]
[356623146,1742845340335,500.0,0.00048767,120]
[356623147,1742845340377,500.0,0.00049589,120]
[356623148,1742845340433,8969.24,0.00047123,120]
[356623149,1742845340594,500.0,0.00049041,120]
[356623150,1742845340674,8969.24,0.00047397,120]
[356623151,1742845340803,500.0,0.00049863,120]
[356623152,1742845340858,500.0,0.00049315,120]
[356623153,1742845340921,8969.24,0.00047671,120]
[356623154,1742845341051,500.0,0.00050136,120]
[356623155,1742845341111,527.86407016,0.00049589,120]
[356623156,1742845341172,8969.24,0.00047945,120]
[356623157,1742845341353,500.0,0.0005041,120]
[356623158,1742845341423,8969.24,0.00048219,120]
[356623159,1742845341596,500.0,0.00050684,120]
[356623160,1742845341662,8969.24,0.00048493,120]
[356623161,1742845341921,8969.24,0.00048767,120]
[356623162,1742845342161,8969.24,0.00049041,120]
[356623163,1742845342419,8969.24,0.00049315,120]
[356623164,1742845342658,8969.24,0.00049589,120]
[356623165,1742845342780,500.0,0.00046575,120]
[356623166,1742845342941,8969.24,0.00049863,120]
[356623167,1742845343025,500.0,0.00046849,120]
[356623168,1742845343245,8969.24,0.00050136,120]
[356623169,1742845343285,500.0,0.00047123,120]
[356623170,1742845343514,8969.24,0.0005041,120]
[356623171,1742845343558,500.0,0.00047397,120]
[356623172,1742845343809,364.79889827,0.00047671,120]
[356623173,1742845344101,8969.24,0.00050684,120]
[356623174,1742845345041,500.0,0.00046575,120]
[356623175,1742845345348,500.0,0.00046849,120]
[356623176,1742845345893,500.0,0.00047123,120]
[356623177,1742845346200,500.0,0.00047397,120]
[356623178,1742845346482,500.0,0.00047671,120]
[356623179,1742845346711,500.0,0.00047945,120]
[356623180,1742845346976,500.0,0.00048219,120]
[356623181,1742845347254,500.0,0.00048493,120]
[356623182,1742845347550,500.0,0.00046575,120]
[356623183,1742845347757,516.61088525,0.00048767,120]
[356623184,1742845348149,500.0,0.00046849,120]
[356623185,1742845348609,500.0,0.00047123,120]
[356623186,1742845348813,500.0,0.00046575,120]
[356623187,1742845349014,513.85353996,0.00047397,120]
[356623188,1742845349130,500.0,0.00046849,120]
[356623189,1742845349322,500.0,0.00047123,120]
[356623190,1742845349613,388.74285999,0.00047397,120]
[356623191,1742845350954,500.0,0.00046575,120]
[356623192,1742845351220,500.0,0.00046849,120]
[356623193,1742845351519,500.0,0.00047123,120]
[356623194,1742845351760,500.0,0.00046575,120]
[356623195,1742845351810,500.0,0.00047397,120]
[356623196,1742845352017,500.0,0.00046849,120]
[356623197,1742845352077,500.0,0.00047671,120]
[356623198,1742845352289,500.0,0.00047123,120]
[356623199,1742845352324,500.0,0.00047945,120]
[356623200,1742845352535,500.0,0.00047397,120]
[356623201,1742845352571,500.0,0.00048219,120]
[356623202,1742845352782,500.0,0.00047671,120]
[356623203,1742845352824,182.60235051,0.00048493,120]
[356623204,1742845353040,500.0,0.00047945,120]
[356623205,1742845353278,500.0,0.00048219,120]
[356623206,1742845353530,290.12677251,0.00048493,120]
[356623207,1742845354633,5561.47,0.00046575,120]
[356623208,1742845354790,500.0,0.00046575,120]
[356623209,1742845354885,5561.47,0.00046849,120]
[356623210,1742845354927,506.60472709,0.00046575,120]
[356623211,1742845355025,500.0,0.00046849,120]
[356623212,1742845355142,5561.47,0.00047123,120]
[356623213,1742845355277,500.0,0.00047123,120]
[356623214,1742845355393,5561.47,0.00047397,120]
[356623215,1742845355545,500.0,0.00046575,120]
[356623216,1742845355584,500.0,0.00047397,120]
[356623217,1742845355622,5561.47,0.00047671,120]
[356623218,1742845355815,500.0,0.00049684,120]
[356623219,1742845355861,500.0,0.00047671,120]
[356623220,1742845355912,500.0,0.00046575,120]
[356623221,1742845355949,5561.47,0.00047945,120]
[356623222,1742845355989,500.0,0.00046849,120]
[356623223,1742845356120,500.0,0.00047945,120]
[356623224,1742845356160,5561.47,0.00048219,120]
[356623225,1742845356196,500.0,0.00046849,120]
[356623226,1742845356308,500.0,0.00047123,120]
[356623227,1742845356385,261.67945252,0.00048219,120]
[356623228,1742845356431,500.0,0.00047123,120]
[356623229,1742845356467,5561.47,0.00048493,120]
[356623230,1742845356578,500.0,0.00047397,120]
[356623231,1742845356643,628.21106931,0.00047397,120]
[356623232,1742845356724,5561.47,0.00048767,120]
[356623233,1742845356872,332.74365727,0.00047671,120]
[356623234,1742845357001,5561.47,0.00049041,120]
[356623235,1742845357252,5561.47,0.00049315,120]
[356623236,1742845357530,5561.47,0.00049589,120]
[356623237,1742845357786,5561.47,0.00049863,120]
[356623238,1742845358030,5561.47,0.00050136,120]
[356623239,1742845358317,5561.47,0.0005041,120]
[356623240,1742845358582,5561.47,0.00050684,120]
[356623241,1742845359083,1010.6,0.00046575,120]
[356623242,1742845359338,1010.6,0.00046849,120]
[356623243,1742845359595,1010.6,0.00047123,120]
[356623244,1742845359909,1010.6,0.00047397,120]
[356623245,1742845360155,1010.6,0.00047671,120]
[356623246,1742845360404,1010.6,0.00047945,120]
[356623247,1742845360658,1010.6,0.00048219,120]
[356623248,1742845361050,1010.6,0.00048493,120]
[356623249,1742845361163,1010.6,0.00048767,120]
[356623250,1742845361440,1010.6,0.00049041,120]
[356623251,1742845361703,1010.6,0.00049315,120]
[356623252,1742845361942,1010.6,0.00049589,120]
[356623253,1742845362237,1010.6,0.00049863,120]
[356623254,1742845362469,500.0,0.00046575,120]
[356623255,1742845362593,1010.6,0.00050136,120]
[356623256,1742845362727,500.0,0.00046849,120]
[356623257,1742845362867,1010.6,0.0005041,120]
[356623258,1742845362925,500.0,0.00046575,120]
[356623259,1742845363012,500.0,0.00047123,120]
[356623260,1742845363182,500.0,0.00046849,120]
[356623261,1742845363286,500.0,0.00047397,120]
[356623262,1742845363325,1010.6,0.00050684,120]
[356623263,1742845363439,500.0,0.00047123,120]
[356623264,1742845363550,500.0,0.00047671,120]
[356623265,1742845363683,500.0,0.00047397,120]
[356623266,1742845363723,512.611447,0.000494,120]
[356623267,1742845363801,500.0,0.00047945,120]
[356623268,1742845363926,500.0,0.00047671,120]
[356623269,1742845363991,512.611447,0.0005,120]
[356623270,1742845364084,500.0,0.00048219,120]
[356623271,1742845364215,500.0,0.00047945,120]
[356623272,1742845364365,373.99604647,0.00048493,120]
[356623273,1742845364467,319.29709496,0.00048219,120]
[356623274,1742845366545,500.0,0.00046575,120]
[356623275,1742845366819,500.0,0.00046849,120]
[356623276,1742845366942,585.94279204,0.00046575,120]
[356623277,1742845367111,500.0,0.00047123,120]
[356623278,1742845367379,500.0,0.00047397,120]
[356623279,1742845367448,500.0,0.00046575,120]
[356623280,1742845367488,150.0,0.00050169,30]
[356623281,1742845367525,150.0,0.00050389,30]
[356623282,1742845367576,150.0,0.00050035,30]
[356623283,1742845367627,500.0,0.00047671,120]
[356623284,1742845367665,272.15826653,0.00049906,30]
[356623285,1742845367708,500.0,0.00046849,120]
[356623286,1742845367894,500.0,0.00047945,120]
[356623287,1742845368129,500.0,0.00047123,120]
[356623288,1742845368168,319.1774364,0.00048219,120]
[356623289,1742845368373,309.06802252,0.00047397,120]
[356623290,1742845369029,512.611447,0.000494,120]
[356623291,1742845369416,512.611447,0.0005,120]
[356623292,1742845370243,527.42,0.00046575,120]
[356623293,1742845370486,527.42,0.00046849,120]
[356623294,1742845370762,527.42,0.00047123,120]
[356623295,1742845370925,500.0,0.00046575,120]
[356623296,1742845371031,527.42,0.00047397,120]
[356623297,1742845371176,500.0,0.00046849,120]
[356623298,1742845371275,527.42,0.00047671,120]
[356623299,1742845371455,344.20108838,0.00047123,120]
[356623300,1742845371544,527.42,0.00047945,120]
[356623301,1742845371811,527.42,0.00048219,120]
[356623302,1742845372097,527.42,0.00048493,120]
[356623303,1742845372337,527.42,0.00048767,120]
[356623304,1742845372964,527.42,0.00049041,120]
[356623305,1742845373226,527.42,0.00049315,120]
[356623306,1742845373271,500.0,0.00046575,120]
[356623307,1742845373468,527.42,0.00049589,120]
[356623308,1742845373618,500.0,0.00046849,120]
[356623309,1742845373708,527.42,0.00049863,120]
[356623310,1742845373869,500.0,0.00047123,120]
[356623311,1742845373957,527.42,0.00050136,120]
[356623312,1742845374118,500.0,0.00047397,120]
[356623313,1742845374208,527.42,0.0005041,120]
[356623314,1742845374539,527.42,0.00050684,120]
[356623315,1742845374846,500.0,0.00047671,120]
[356623316,1742845375133,500.0,0.00047945,120]
[356623317,1742845375370,286.97931318,0.00048219,120]
[356623318,1742845376846,500.0,0.00046575,120]
[356623319,1742845377138,500.0,0.00046849,120]
[356623320,1742845377374,500.0,0.00047123,120]
[356623321,1742845377632,156.78254507,0.00047397,120]
[356623322,1742845378782,500.0,0.00046575,100]
[356623323,1742845379065,500.0,0.00046849,100]
[356623324,1742845379335,500.0,0.00047123,100]
[356623325,1742845379821,500.0,0.00047397,100]
[356623326,1742845379864,500.0,0.00047671,100]
[356623327,1742845380154,500.0,0.00047945,100]
[356623328,1742845380399,500.0,0.00046575,120]
[356623329,1742845380436,500.0,0.00048219,100]
[356623330,1742845380653,500.0,0.00048493,100]
[356623331,1742845380723,500.0,0.00046849,120]
[356623332,1742845380948,500.0,0.00048767,100]
[356623333,1742845381014,500.0,0.00047123,120]
[356623334,1742845381293,500.0,0.00047397,120]
[356623335,1742845381575,500.0,0.00047671,120]
[356623336,1742845381614,500.0,0.00049041,100]
[356623337,1742845381985,500.0,0.00049315,100]
[356623338,1742845382097,500.0,0.00046575,120]
[356623339,1742845382180,500.0,0.00047945,120]
[356623340,1742845382297,500.0,0.00049589,100]
[356623341,1742845382335,500.0,0.00046575,120]
[356623342,1742845382377,500.0,0.00046849,120]
[356623343,1742845382515,500.0,0.00048219,120]
[356623344,1742845382553,500.0,0.00046849,120]
[356623345,1742845382599,500.0,0.00049863,100]
[356623346,1742845382787,500.0,0.00048493,120]
[356623347,1742845382827,500.0,0.00047123,120]
[356623348,1742845382923,500.0,0.00050136,100]
[356623349,1742845383055,500.0,0.00047397,120]
[356623350,1742845383182,469.62101292,0.0005041,100]
[356623351,1742845383223,253.10651723,0.00048767,120]
[356623352,1742845383305,229.8262424,0.00047671,120]
[356623353,1742845482661,-452.21,0.0001176,2]
[356623354,1742845521213,-525.0,0.00011863,2]
[356623365,1742845831842,-455.4,0.00011863,2]
[356623366,1742845831854,-10.6,0.00011863,2]
[356623367,1742845831864,-1235.827,0.000119,2]
[356623368,1742845831873,-103.68860118,0.000119,2]
[356623369,1742845831946,-1279.07939882,0.000119,2]
[356623370,1742845831956,-635.36585193,0.00012,2]
[356623371,1742845832000,-7012.97163903,0.00012,2]
[356623372,1742845832055,-362.5,0.00012,2]
[356623373,1742845832162,-1231.7901424,0.00012,2]
[356623374,1742845832174,-714.21207113,0.00012,2]
[356623375,1742845832185,-2726.22153366,0.00012,2]
[356623376,1742845832196,-510.674481,0.00012,2]
[356623395,1742845837818,-4110.6,0.00012,2]
[356623396,1742845837829,-2919.1999956,0.00012,2]
[356623401,1742845840071,-298.63750015,0.00012,2]
[356623402,1742845840334,-4438.02549238,0.00012,2]
[356623406,1742845843064,-29227.82756238,0.00012,2]
[356623407,1742845843076,-2404.8,0.00012,2]
[356623408,1742845843148,-756804.83768471,0.00012,2]
[356623420,1742845845963,-4542.7080499,0.00012,2]
[356623421,1742845845975,-525.78903043,0.00012,2]
[356623422,1742845846016,-47571.75907061,0.00012,2]
[356623423,1742845846067,-2654.3241981,0.00012,2]
[356623454,1742845860924,-1947681.27802275,0.00012,2]
[356623455,1742845860935,-169.75951688,0.00012,2]
[356623456,1742845860946,-1557.20520486,0.000121,2]
[356623457,1742845860956,-5055.44348142,0.000122,2]
[356623458,1742845860967,-182.0453235,0.000123,2]
[356623459,1742845860978,-207.2427865,0.000129,2]
[356623460,1742845860989,-300.0,0.00013,2]
[356623461,1742845861000,-1557.20520485,0.00013517,2]
[356623462,1742845861011,-5055.44348139,0.00013606,2]
[356623463,1742845861022,-1557.20520485,0.00014934,2]
[356623464,1742845861033,-350.0,0.00015,2]
[356623465,1742845861044,-5055.44348139,0.00015012,2]
[356623466,1742845861055,-598.68,0.00015596,2]
[356623467,1742845861066,-1557.20520485,0.00016351,2]
[356623468,1742845861077,-5055.44348139,0.00016417,2]
[356623469,1742845861087,-207.24278642,0.00016567,2]
[356623470,1742845861098,-571.0,0.000169,2]
[356623471,1742845861109,-400.0,0.00017,2]
[356623472,1742845861120,-23900.0,0.00017014,2]
[356623473,1742845861132,-250.0,0.00017119,2]
[356623474,1742845861142,-1000.0,0.00017263,2]
[356623475,1742845861154,-200.0,0.00017428,2]
[356623476,1742845861164,-1557.20520485,0.00017768,2]
[356623477,1742845861175,-5055.44348139,0.00017823,2]
[356623478,1742845861186,-598.68,0.0001786,2]
[356623479,1742845861196,-256.03,0.00017987,2]
[356623480,1742845861206,-300.0,0.00018485,2]
[356623481,1742845861217,-159.68,0.000186,2]
[356623482,1742845861227,-200.0,0.0001892,2]
[356623483,1742845861238,-1016.0,0.00019,3]
[356623484,1742845861248,-450.0,0.00019,2]
[356623485,1742845861258,-858.44020937,0.00019,2]
[356623486,1742845861269,-52951.60010789,0.00019,2]
[356623487,1742845861279,-1557.20520485,0.00019184,2]
[356623488,1742845861290,-182.0453235,0.00019213,2]
[356623489,1742845861300,-5055.44348139,0.00019229,2]
[356623490,1742845861315,-317.69156673,0.000194,3]
[356623491,1742845861325,-6791.84463906,0.000194,2]
[356623492,1742845861336,-269.26843988,0.000194,2]
[356623493,1742845861347,-178.50468506,0.000194,2]
[356623494,1742845861358,-150.0,0.00019419,7]
[356623495,1742845861369,-1000.0,0.00019421,2]
[356623496,1742845861380,-500.0,0.00019473,2]
[356623497,1742845861391,-501.29504108,0.00019473,2]
[356623498,1742845861401,-500.0,0.00019473,2]
[356623499,1742845861412,-825978.65144165,0.000195,2]
[356623500,1742845861423,-291.81785613,0.000195,2]
[356623501,1742845861434,-52401.80934266,0.000196,2]
[356623502,1742845861444,-151.0,0.000196,2]
[356623503,1742845861455,-151.0,0.000196,2]
[356623504,1742845861466,-151.0,0.000196,2]
[356623505,1742845861476,-3304.09674595,0.0001961,2]
[356623506,1742845861487,-300.0,0.00019855,2]
[356623507,1742845861497,-3016.88858594,0.0001987,2]
[356623508,1742845861507,-4999.99,0.0002,2]
[356623509,1742845861517,-66723.30679846,0.0002,2]
[356623510,1742845861528,-6653.0,0.0002,2]
[356623511,1742845861538,-3488.49992381,0.0002,4]
[356623512,1742845861552,-8440.23080719,0.0002,2]
[356623513,1742845861563,-74610.29159568,0.0002,2]
[356623514,1742845861574,-188.289914,0.0002,2]
[356623515,1742845861587,-151.0,0.0002,2]
[356623516,1742845861597,-151.0,0.0002,2]
[356623517,1742845861608,-2000.0,0.0002,4]
[356623518,1742845861619,-187.21,0.0002,2]
[356623519,1742845861629,-187.21,0.0002,2]
[356623520,1742845861639,-187.21,0.0002,2]
[356623521,1742845861649,-187.21,0.0002,2]
[356623522,1742845861660,-187.21,0.0002,2]
[356623523,1742845861670,-187.21,0.0002,2]
[356623524,1742845861680,-187.21,0.0002,2]
[356623525,1742845861692,-187.21,0.0002,2]
[356623526,1742845861702,-187.21,0.0002,2]
[356623527,1742845861712,-187.21,0.0002,2]
[356623528,1742845861722,-187.21,0.0002,2]
[356623529,1742845861733,-187.21,0.0002,2]
[356623530,1742845861743,-187.21,0.0002,2]
[356623531,1742845861753,-187.21,0.0002,2]
[356623532,1742845861764,-187.21,0.0002,2]
[356623533,1742845861774,-187.21,0.0002,2]
[356623534,1742845861939,-187.21,0.0002,2]
[356623535,1742845861970,-187.21,0.0002,2]
[356623536,1742845861980,-187.21,0.0002,2]
[356623537,1742845861990,-187.21,0.0002,2]
[356623538,1742845861999,-187.21,0.0002,2]
[356623539,1742845862009,-187.21,0.0002,2]
[356623540,1742845862018,-187.21,0.0002,2]
[356623541,1742845862029,-187.21,0.0002,2]
[356623542,1742845862038,-187.21,0.0002,2]
[356623543,1742845862048,-187.21,0.0002,2]
[356623544,1742845862059,-187.21,0.0002,2]
[356623545,1742845862069,-187.21,0.0002,2]